fUSD/lending_fUSD_20260213
["ID","MTS","AMOUNT","RATE_DAILY","PERIOD"]
[405329410,1771006233792,-150.0,0.00028544,2]
[405329411,1771006233802,-49900.0,0.0002855,2]
[405329412,1771006233811,-1000.0,0.0002888,2]
[405329413,1771006233822,-675.0,0.000291,2]
[405329414,1771006233831,-608.0,0.000291,2]
[405329415,1771006233841,-1000.0,0.00029154,2]
[405329416,1771006233851,-55653.76244349,0.00029233,2]
[405329417,1771006233860,-1000.0,0.00029428,2]
[405329418,1771006233868,-1000.0,0.00029438,120]
[405329419,1771006233877,-1000.0,0.00029438,120]
[405329420,1771006233886,-266.452,0.00029438,120]
[405329421,1771006233896,-9989.1316564,0.00029528,2]
[405329422,1771006233905,-1000.0,0.00029702,2]
[405329423,1771006233915,-6044.18,0.00029702,2]
[405329424,1771006233924,-150.0,0.00029971,2]
[405329425,1771006233938,-1000.0,0.00029976,2]
[405329426,1771006233948,-1000.0,0.0003025,7]
[405329427,1771006233957,-240.19,0.000303,30]
[405329428,1771006233967,-1000.0,0.00030524,7]
[405329429,1771006233976,-3266.29,0.00030642,2]
[405329430,1771006233986,-1000.0,0.00030798,7]
[405329431,1771006233996,-1455.19,0.0003105,30]
[405329432,1771006234005,-1534.0,0.00031072,7]
[405329433,1771006234016,-2450.0,0.00031105,2]
[405329434,1771006234026,-3488.0,0.00031299,2]
[405329435,1771006234035,-1288.0,0.00031299,2]
[405329436,1771006234044,-1337.0,0.00031299,2]
[405329437,1771006234054,-1272.0,0.00031299,2]
[405329438,1771006234063,-918.0,0.00031299,2]
[405329439,1771006234072,-350.63,0.000313,7]
[405329440,1771006234082,-150.0,0.0003147,2]
[405329441,1771006234092,-160.0,0.000317,7]
[405329442,1771006234102,-9989.1316564,0.00031971,2]
[405329443,1771006234111,-7799.95210211,0.0003201,2]
[405329444,1771006234120,-683.875,0.00032447,32]
[405329445,1771006234130,-151.0,0.00032464,7]
[405329446,1771006234139,-55653.76244349,0.00032467,2]
[405329447,1771006234149,-580.0,0.00032473,30]
[405329448,1771006234158,-152.0,0.00032835,3]
[405329449,1771006234168,-206426.91,0.000329,14]
[405329450,1771006234177,-175.0,0.00033,14]
[405329451,1771006234187,-150.0,0.00033043,2]
[405329452,1771006234197,-7944.54502821,0.0003307,2]
[405329453,1771006234206,-584.63,0.00033099,120]
[405329454,1771006234216,-741.95,0.000331,14]
[405329455,1771006234227,-441.44,0.000331,2]
[405329456,1771006234237,-500.0,0.00033288,2]
[405329457,1771006234247,-5530.0,0.000333,5]
[405329458,1771006234259,-224.21,0.00033443,2]
[405329459,1771006234271,-500.0,0.00033507,2]
[405329460,1771006234281,-7295.36,0.00033699,2]
[405329461,1771006234291,-2450.0,0.00034105,2]
[405329462,1771006234300,-3488.0,0.00034299,2]
[405329463,1771006234311,-1288.0,0.00034299,2]
[405329464,1771006234320,-1337.0,0.00034299,2]
[405329465,1771006234331,-918.0,0.00034299,2]
[405329466,1771006234340,-206426.91,0.000343,14]
[405329467,1771006234350,-300.140209,0.00034407,68]
[405329468,1771006234359,-9989.1316564,0.00034414,2]
[405329469,1771006234368,-150.0,0.00034696,2]
[405329470,1771006234378,-1455.19,0.00034703,30]
[405329471,1771006234387,-1500.0,0.00034795,2]
[405329472,1771006234397,-370.45,0.000348,14]
[405329473,1771006234406,-4618.26563878,0.00035,10]
[405329474,1771006234416,-25000.0,0.00035085,10]
[405329475,1771006234426,-7799.95210211,0.00035655,2]
[405329476,1771006234435,-1258.62880881,0.0003569,2]
[405329477,1771006234445,-177.94510705,0.0003569,2]
[405329478,1771006234454,-8348.91648146,0.0003569,2]
[405329479,1771006234464,-55653.76244349,0.000357,2]
[405329480,1771006234474,-584.63,0.0003579,120]
[405329481,1771006234483,-584.63,0.0003579,120]
[405329482,1771006234493,-584.63,0.0003579,120]
[405329483,1771006234502,-584.63,0.0003579,120]
[405329484,1771006234511,-584.63,0.0003579,120]
[405329485,1771006234521,-584.63,0.0003579,120]
[405329486,1771006234531,-151.0,0.0003579,7]
[405329487,1771006234543,-151.0,0.0003579,7]
[405329488,1771006234561,-151.0,0.0003579,7]
[405329489,1771006234571,-166.751362,0.0003579,31]
[405329490,1771006234580,-166.751362,0.0003579,31]
[405329491,1771006234591,-166.751362,0.0003579,31]
[405329492,1771006234603,-166.751362,0.0003579,31]
[405329493,1771006234613,-752424.57668375,0.0003579,2]
[405329494,1771006234646,-747575.42331625,0.0003579,2]
[405329495,1771006234656,-30779.91221124,0.0003579,2]
[405329496,1771006234666,-350.63,0.000358,14]
[405329497,1771006234676,-195.13356541,0.000358,2]
[405329498,1771006234685,-25000.0,0.0003583,10]
[405329499,1771006234695,-25000.0,0.00035838,10]
[405329500,1771006234705,-25000.0,0.00035847,10]
[405329501,1771006234714,-25000.0,0.00035856,10]
[405329502,1771006234724,-25000.0,0.00035865,10]
[405329503,1771006234734,-25000.0,0.00035874,10]
[405329504,1771006234744,-584.63,0.00035882,120]
[405329505,1771006234753,-25000.0,0.00035882,10]
[405329506,1771006234762,-11579.40496609,0.00035891,10]
[405329507,1771006234775,-13420.59503391,0.00035891,10]
[405329508,1771006234784,-2000.0,0.000359,2]
[405329509,1771006234794,-25000.0,0.000359,10]
[405329510,1771006234803,-1000.0,0.000359,2]
[405329511,1771006234813,-300.0,0.000359,13]
[405329512,1771006234823,-160.0,0.00036,10]
[405329513,1771006234832,-584.63,0.00036099,120]
[405329514,1771006234842,-441.44,0.000361,2]
[405329515,1771006234852,-156910.24941593,0.000361,14]
[405329516,1771006234864,-42106.24191279,0.000361,14]
[405329517,1771006234875,-7410.41867128,0.000361,14]
[405329518,1771006234885,-152.0,0.00036222,4]
[405329519,1771006234894,-150.0,0.0003643,2]
[405329520,1771006234904,-741.95,0.000365,14]
[405329521,1771006234913,-878.1502,0.00036528,2]
[405329522,1771006234923,-32832.125,0.00036528,2]
[405329523,1771006234932,-1000.0,0.00036528,2]
[405329524,1771006234941,-584.63,0.00036627,120]
[405329525,1771006234950,-222.50991309,0.00036627,120]
[405329526,1771006234962,-362.12008691,0.00036627,120]
[405329527,1771006234972,-584.63,0.00036627,120]
[405329528,1771006234983,-307.66799986,0.00036627,120]
[405329529,1771006234998,-276.96200014,0.00036627,120]
[405329530,1771006235007,-584.63,0.00036627,120]
[405329531,1771006235017,-379.71137586,0.00036627,120]
[405329532,1771006235835,-0.12488614,0.00036627,120]
[405329533,1771006237533,-412.0,0.00022105,2]
[405329534,1771006237543,-204.87462253,0.00036627,120]
[405329535,1771006237553,-556.0,0.00036627,30]
[405329536,1771006237563,-1274.12537747,0.00036628,2]
[405329537,1771006237574,-18562.02590623,0.00036628,2]
[405329538,1771006237583,-130047.053292,0.00036628,2]
[405329539,1771006237593,-737016.4193906,0.00036628,2]
[405329540,1771006237602,-3030.7080369,0.00036628,2]
[405329541,1771006237611,-1000.0,0.00036702,2]
[405329542,1771006237620,-370.45,0.000368,14]
[405329543,1771006237629,-9989.1316564,0.00036857,2]
[405329544,1771006237638,-268.00347,0.00036986,31]
[405329545,1771006237648,-152.959201,0.00036986,31]
[405329546,1771006237657,-151.0,0.00036986,31]
[405329547,1771006237666,-151.0,0.00036986,31]
[405329548,1771006237676,-151.0,0.00036986,31]
[405329549,1771006237685,-151.0,0.00036986,31]
[405329550,1771006237695,-151.0,0.00036986,31]
[405329551,1771006237705,-151.0,0.00036986,31]
[405329552,1771006237714,-151.0,0.00036986,31]
[405329553,1771006237724,-151.0,0.00036986,31]
[405329554,1771006237733,-151.0,0.00036986,31]
[405329555,1771006237743,-151.0,0.00036986,31]
[405329556,1771006237752,-264.185097,0.00036986,31]
[405329557,1771006237762,-249.780998,0.00036986,31]
[405329558,1771006237771,-151.0,0.00036986,31]
[405329559,1771006237781,-151.0,0.00036986,31]
[405329560,1771006237791,-584.057323,0.00036986,31]
[405329562,1771006237800,-584.057323,0.00036986,31]
[405329564,1771006237809,-584.057323,0.00036986,31]
[405329566,1771006237818,-486.466736,0.00036986,31]
[405329568,1771006237828,-584.057323,0.00036986,31]
[405329570,1771006237837,-486.466736,0.00036986,31]
[405329572,1771006237846,-486.466736,0.00036986,31]
[405329573,1771006237855,-486.466736,0.00036986,31]
[405329576,1771006237865,-425.820293,0.00036986,31]
[405329578,1771006237875,-425.820293,0.00036986,31]
[405329579,1771006237883,-425.820293,0.00036986,31]
[405329581,1771006237892,-425.820293,0.00036986,31]
[405329583,1771006237902,-2450.0,0.00037105,2]
[405329585,1771006237911,-160.530758,0.00037115,31]
[405329587,1771006237920,-151.0,0.00037115,31]
[405329589,1771006237929,-151.0,0.00037115,31]
[405329591,1771006237938,-151.0,0.00037115,31]
[405329594,1771006237948,-249.817687,0.00037115,31]
[405329596,1771006237958,-192.08838,0.00037115,31]
[405329597,1771006237967,-151.0,0.00037115,31]
[405329598,1771006237977,-182.511517,0.00037115,31]
[405329599,1771006237987,-500.0,0.00037115,20]
[405329600,1771006237996,-3488.0,0.00037299,2]
[405329601,1771006238006,-1288.0,0.00037299,2]
[405329602,1771006238015,-1337.0,0.00037299,2]
[405329603,1771006238025,-206426.91,0.000373,14]
[405329604,1771006238035,-151.0,0.000373,31]
[405329605,1771006238045,-151.0,0.000373,31]
[405329606,1771006238055,-151.0,0.000373,31]
[405329607,1771006238064,-171.009639,0.000373,31]
[405329608,1771006238074,-151.0,0.000373,31]
[405329609,1771006238083,-205.29879,0.000373,31]
[405329610,1771006238093,-205.29879,0.000373,31]
[405329611,1771006238102,-151.0,0.000373,31]
[405329612,1771006238111,-151.0,0.000373,31]
[405329613,1771006238120,-205.29879,0.000373,31]
[405329614,1771006238130,-151.0,0.000373,31]
[405329615,1771006238139,-151.0,0.000373,31]
[405329616,1771006238149,-205.29879,0.000373,31]
[405329617,1771006238158,-151.0,0.000373,31]
[405329618,1771006238168,-151.0,0.000373,31]
[405329619,1771006238177,-200.69896673,0.000373,31]
[405329620,1771006238187,-285.760225,0.000373,31]
[405329621,1771006238196,-151.0,0.000373,31]
[405329622,1771006238206,-285.760225,0.000373,31]
[405329623,1771006238216,-285.760225,0.000373,31]
[405329624,1771006238226,-285.760225,0.000373,31]
[405329625,1771006238235,-151.0,0.000374,31]
[405329626,1771006238244,-151.0,0.000374,31]
[405329627,1771006238254,-155.036509,0.000374,31]
[405329628,1771006238265,-168.30118,0.000374,31]
[405329629,1771006238275,-641.60832238,0.00037413,2]
[405329630,1771006238284,-441.44,0.000375,2]
[405329631,1771006238294,-151.0,0.000375,31]
[405329632,1771006238304,-151.0,0.000375,31]
[405329633,1771006238313,-151.0,0.000375,10]
[405329634,1771006238323,-217.69633,0.000375,10]
[405329635,1771006238334,-152.331167,0.000375,31]
[405329636,1771006238343,-151.0,0.000375,31]
[405329637,1771006238353,-151.0,0.000375,31]
[405329638,1771006238362,-151.0,0.000375,31]
[405329639,1771006238372,-151.0,0.000375,31]
[405329640,1771006238382,-151.0,0.000375,31]
[405329641,1771006238391,-151.0,0.000375,31]
[405329642,1771006238401,-151.0,0.000375,31]
[405329643,1771006238410,-191.668851,0.000375,31]
[405329644,1771006238420,-191.668851,0.000375,31]
[405329645,1771006238429,-161.63497,0.000375,31]
[405329646,1771006238439,-191.668851,0.000375,31]
[405329647,1771006238448,-191.668851,0.000375,31]
[405329648,1771006238457,-151.0,0.000375,31]
[405329649,1771006238467,-151.0,0.000375,31]
[405329650,1771006238476,-151.0,0.000375,31]
[405329651,1771006238486,-246.73407,0.000375,31]
[405329652,1771006238496,-151.0,0.000375,31]
[405329653,1771006238510,-192.949632,0.000375,31]
[405329654,1771006238520,-151.0,0.000375,31]
[405329655,1771006238530,-151.0,0.000375,31]
[405329656,1771006238540,-151.0,0.000375,31]
[405329657,1771006238550,-151.0,0.000375,31]
[405329658,1771006238559,-151.0,0.000375,31]
[405329659,1771006238568,-151.0,0.000375,31]
[405329660,1771006238578,-151.0,0.000375,31]
[405329661,1771006238587,-151.0,0.000375,31]
[405329662,1771006238597,-151.0,0.000375,31]
[405329663,1771006238606,-151.0,0.000375,31]
[405329664,1771006238616,-151.0,0.000375,31]
[405329665,1771006238625,-151.0,0.000375,31]
[405329666,1771006238635,-151.0,0.000375,31]
[405329667,1771006238645,-151.162535,0.000375,31]
[405329668,1771006238654,-151.0,0.000375,31]
[405329669,1771006238663,-188.066268,0.000375,31]
[405329670,1771006238673,-151.0,0.000375,31]
[405329671,1771006238682,-151.0,0.000375,31]
[405329672,1771006238692,-151.0,0.000375,31]
[405329673,1771006238701,-151.0,0.000375,31]
[405329674,1771006238711,-151.0,0.000375,31]
[405329675,1771006238720,-151.0,0.000375,31]
[405329676,1771006238730,-179.44251,0.000375,31]
[405329677,1771006238740,-500.0,0.00037756,14]
[405329678,1771006238751,-500.0,0.00037756,14]
[405329679,1771006238760,-800.0,0.00037756,14]
[405329680,1771006238770,-215.462745,0.00037756,31]
[405329681,1771006238781,-741.95,0.000378,14]
[405329682,1771006238790,-150.0,0.00038252,2]
[405329683,1771006238801,-200.0,0.0003826,10]
[405329684,1771006238812,-1999.0,0.00038356,120]
[405329685,1771006238822,-1455.19,0.00038356,30]
[405329686,1771006238832,-151.0,0.00038356,120]
[405329687,1771006238842,-7944.54502821,0.00038385,2]
[405329688,1771006238852,-350.0,0.00038532,2]
[405329689,1771006238862,-800.0,0.00038578,14]
[405329690,1771006238871,-370.45,0.000386,14]
[405329691,1771006238881,-350.0,0.00038821,2]
[405329692,1771006238891,-350.0,0.00038876,2]
[405329693,1771006238901,-300.0,0.000389,14]
[405329694,1771006238910,-1999.0,0.00039178,120]
[405329695,1771006238919,-500.0,0.00039199,14]
[405329696,1771006238929,-528.99656538,0.00039199,14]
[405329697,1771006238939,-202.27978627,0.00039199,14]
[405329698,1771006238949,-522.64508925,0.00039199,14]
[405329699,1771006238959,-202.81840748,0.00039199,14]
[405329700,1771006238969,-500.0,0.00039199,14]
[405329701,1771006238981,-1000.0,0.000392,120]
[405329702,1771006238991,-1000.0,0.000392,120]
[405329703,1771006239002,-155.0,0.000392,7]
[405329704,1771006239012,-150.0,0.000392,16]
[405329705,1771006239022,-206426.91,0.000392,14]
[405329706,1771006239031,-2000.0,0.00039203,3]
[405329707,1771006239041,-2000.0,0.00039203,3]
[405329708,1771006239052,-207.6449656,0.0003929,2]
[405329709,1771006239063,-10163.6,0.000393,2]
[405329710,1771006239073,-9989.1316564,0.000393,2]
[405329711,1771006239083,-7799.95210211,0.000393,2]
[405329712,1771006239092,-152.0,0.00039326,12]
[405329713,1771006239102,-350.0,0.00039354,2]
[405329714,1771006239111,-150.12293208,0.0003936,2]
[405329715,1771006239121,-151.0,0.00039399,120]
[405329716,1771006239131,-151.0,0.00039399,120]
[405329717,1771006239141,-151.0,0.00039399,120]
[405329718,1771006239151,-270.066772,0.00039399,120]
[405329719,1771006239161,-800.0,0.000394,14]
[405329720,1771006239170,-635503.85633462,0.000394,7]
[405329721,1771006239180,-2000.0,0.000394,120]
[405329722,1771006239189,-500.0,0.000394,14]
[405329723,1771006239199,-500.0,0.000394,14]
[405329724,1771006239208,-220.598505,0.000394,120]
[405329725,1771006239218,-151.0,0.000394,120]
[405329726,1771006239229,-441.44,0.000394,30]
[405329727,1771006239238,-151.0,0.000394,120]
[405329728,1771006239249,-151.0,0.000394,120]
[405329729,1771006239259,-153.66688,0.000394,120]
[405329730,1771006239273,-159.362102,0.000394,120]
[405329731,1771006239284,-159.362102,0.000394,120]
[405329732,1771006239294,-159.362102,0.000394,120]
[405329733,1771006239303,-159.362102,0.000394,120]
[405329734,1771006239314,-151.0,0.000394,120]
[405329735,1771006239323,-151.0,0.000394,120]
[405329736,1771006239334,-151.0,0.000394,120]
[405329737,1771006239352,-151.0,0.000394,120]
[405329738,1771006239372,-151.0,0.000394,120]
[405329739,1771006239382,-151.0,0.000394,120]
[405329740,1771006239392,-151.0,0.000394,120]
[405329741,1771006239401,-209.616945,0.000394,120]
[405329742,1771006239411,-234.029245,0.000394,120]
[405329743,1771006239427,-151.0,0.000394,120]
[405329744,1771006239446,-151.0,0.000394,120]
[405329745,1771006239455,-151.0,0.000394,120]
[405329746,1771006239465,-151.0,0.000394,120]
[405329747,1771006239474,-278.24896,0.000394,120]
[405329748,1771006239484,-151.0,0.000394,120]
[405329749,1771006239494,-800.0,0.000394,14]
[405329750,1771006239503,-800.0,0.000394,14]
[405329751,1771006239512,-800.0,0.000394,14]
[405329752,1771006239522,-800.0,0.000394,14]
[405329753,1771006239531,-800.0,0.000394,14]
[405329754,1771006239541,-800.0,0.000394,14]
[405329755,1771006239550,-800.0,0.000394,14]
[405329756,1771006239559,-800.0,0.000394,14]
[405329757,1771006239568,-151.0,0.000394,7]
[405329758,1771006239578,-151.0,0.000394,7]
[405329759,1771006239587,-151.0,0.000394,7]
[405329760,1771006239597,-151.0,0.000394,120]
[405329761,1771006239606,-584.057323,0.000394,120]
[405329762,1771006239615,-584.057323,0.000394,120]
[405329763,1771006239625,-584.057323,0.000394,120]
[405329765,1771006239634,-486.466736,0.000394,120]
[405329767,1771006239644,-584.057323,0.000394,120]
[405329768,1771006239653,-486.466736,0.000394,120]
[405329769,1771006239663,-486.466736,0.000394,120]
[405329770,1771006239672,-486.466736,0.000394,120]
[405329771,1771006239682,-425.820293,0.000394,120]
[405329772,1771006239691,-425.820293,0.000394,120]
[405329773,1771006239701,-166.751362,0.000394,120]
[405329774,1771006239710,-425.820293,0.000394,120]
[405329775,1771006239720,-166.751362,0.000394,120]
[405329776,1771006239732,-425.820293,0.000394,120]
[405329777,1771006239741,-166.751362,0.000394,120]
[405329778,1771006239751,-166.751362,0.000394,120]
[405329779,1771006239759,-151.0,0.000394,120]
[405329780,1771006239769,-417.505045,0.000394,120]
[405329781,1771006239779,-417.505045,0.000394,120]
[405329782,1771006239788,-417.505045,0.000394,120]
[405329783,1771006239798,-417.505045,0.000394,120]
[405329784,1771006239807,-159.535337,0.000394,7]
[405329785,1771006239817,-151.0,0.000394,31]
[405329786,1771006239827,-159.535337,0.000394,7]
[405329787,1771006239836,-151.0,0.000394,31]
[405329788,1771006239845,-196.362188,0.000394,120]
[405329789,1771006239854,-159.535337,0.000394,7]
[405329790,1771006239863,-196.362188,0.000394,120]
[405329791,1771006239873,-151.0,0.000394,120]
[405329792,1771006239883,-159.535337,0.000394,7]
[405329793,1771006239892,-196.362188,0.000394,120]
[405329794,1771006239901,-196.362188,0.000394,120]
[405329795,1771006239911,-151.0,0.000394,120]
[405329796,1771006239920,-215.09361442,0.00039462,120]
[405329797,1771006239929,-1013.13774,0.00039488,30]
[405329798,1771006239939,-2000.0,0.000396,120]
[405329799,1771006239948,-2000.0,0.000396,2]
[405329800,1771006239958,-741.95,0.000396,14]
[405329801,1771006239967,-1000.0,0.000396,2]
[405329802,1771006239978,-152.0,0.00039608,5]
[405329803,1771006239988,-350.0,0.00039672,2]
[405329804,1771006239998,-2873.0,0.00039687,11]
[405329805,1771006240007,-1013.13774,0.00039688,30]
[405329806,1771006240017,-46000.0,0.000397,7]
[405329807,1771006240026,-1258.6288088,0.00039713,2]
[405329808,1771006240035,-177.94510703,0.00039713,2]
[405329809,1771006240044,-8348.91648145,0.00039713,2]
[405329810,1771006240053,-300.81091155,0.00039722,2]
[405329811,1771006240062,-300.0,0.00039722,2]
[405329812,1771006240072,-572.55600174,0.00039722,2]
[405329813,1771006240081,-553.40092275,0.00039722,2]
[405329814,1771006240091,-1083.69896901,0.00039722,2]
[405329815,1771006240100,-300.70116688,0.00039722,2]
[405329816,1771006240110,-300.51467444,0.00039722,2]
[405329817,1771006240119,-300.0,0.00039722,2]
[405329819,1771006240128,-300.00000002,0.00039722,2]
[405329820,1771006240138,-301.20809281,0.00039722,2]
[405329821,1771006240147,-576.15633389,0.00039722,2]
[405329822,1771006240156,-371.94213864,0.00039722,2]
[405329823,1771006240165,-301.02860324,0.00039722,2]
[405329824,1771006240174,-300.0,0.00039722,2]
[405329825,1771006240183,-300.52729027,0.00039722,2]
[405329826,1771006240194,-300.0,0.00039722,2]
[405329827,1771006240203,-300.0,0.00039722,2]
[405329828,1771006240212,-499.96736827,0.00039722,2]
[405329829,1771006240221,-66453.83206436,0.00039781,7]
[405329830,1771006240231,-2972.48084042,0.00039781,7]
[405329831,1771006240240,-6348.87462282,0.00039781,7]
[405329832,1771006240249,-4688.96825844,0.00039781,7]
[405329833,1771006240259,-2000.0,0.000398,120]
[405329834,1771006240272,-1013.13774,0.00039888,30]
[405329835,1771006240281,-400.0,0.000399,30]
[405329836,1771006240291,-370.45,0.000399,14]
[405329837,1771006240300,-350.0,0.00039952,3]
[405329838,1771006240310,-610.20846684,0.00039994,31]
[405329839,1771006240320,-179.70658486,0.00039999,31]
[405329840,1771006240496,-291.54305096,0.0004,45]
[405329841,1771006240505,-2836.61906496,0.0004,120]
[405329842,1771006240515,-5045.17628874,0.0004,120]
[405329843,1771006240524,-1999.15330172,0.0004,30]
[405329844,1771006240534,-3092.90790449,0.0004,120]
[405329845,1771006240543,-646.74562772,0.0004,120]
[405329846,1771006240552,-10741.89523399,0.0004,120]
[405329847,1771006240561,-183.61562753,0.0004,120]
[405329848,1771006240570,-222.12145776,0.0004,120]
[405329849,1771006240579,-760.11542978,0.0004,120]
[405329850,1771006240590,-3494.39889993,0.0004,120]
[405329851,1771006240600,-517.68458,0.0004,120]
[405329852,1771006240609,-1000.0,0.0004,120]
[405329853,1771006240619,-514.98,0.0004,120]
[405329854,1771006240628,-5002.12182928,0.0004,7]
[405329855,1771006240638,-18803.22318422,0.0004,120]
[405329856,1771006240647,-507524.14598271,0.0004,120]
[405329857,1771006240657,-20000.0,0.0004,120]
[405329858,1771006240666,-2052.82604427,0.0004,120]
[405329859,1771006240676,-152.0,0.0004,120]
[405329860,1771006240685,-154.0,0.0004,120]
[405329861,1771006240694,-1074.15174,0.0004,15]
[405329862,1771006240704,-300.0,0.0004,120]
[405329863,1771006240713,-594.7,0.0004,120]
[405329864,1771006240722,-206.75,0.0004,120]
[405329865,1771006240733,-315.07,0.0004,120]
[405329866,1771006240742,-151.0,0.0004,120]
[405329867,1771006240751,-151.0,0.0004,120]
[405329868,1771006240760,-151.0,0.0004,120]
[405329869,1771006240769,-151.0,0.0004,120]
[405329870,1771006240779,-151.0,0.0004,10]
[405329871,1771006240788,-151.0,0.0004,120]
[405329872,1771006240797,-151.0,0.0004,120]
[405329873,1771006240806,-151.0,0.0004,120]
[405329874,1771006240815,-155.028826,0.0004,120]
[405329875,1771006240825,-151.0,0.0004,120]
[405329876,1771006240835,-151.0,0.0004,120]
[405329877,1771006240847,-151.0,0.0004,120]
[405329878,1771006240856,-191.668851,0.0004,120]
[405329879,1771006240866,-191.668851,0.0004,120]
[405329880,1771006240876,-191.668851,0.0004,120]
[405329881,1771006240885,-191.668851,0.0004,120]
[405329882,1771006240895,-160.0,0.0004,120]
[405329883,1771006240905,-151.0,0.0004,35]
[405329884,1771006240915,-151.0,0.0004,35]
[405329885,1771006240925,-151.0,0.0004,35]
[405329886,1771006240934,-3632.71,0.0004,120]
[405329887,1771006240943,-243.003869,0.0004,120]
[405329888,1771006240953,-4584.88,0.0004,120]
[405329889,1771006240962,-253.0,0.0004,30]
[405329890,1771006240971,-189.285564,0.0004,120]
[405329891,1771006240982,-13940.72,0.0004,120]
[405329892,1771006240991,-151.0,0.0004,120]
[405329893,1771006241000,-153.686361,0.0004,120]
[405329894,1771006241009,-197.961281,0.0004,60]
[405329895,1771006241019,-151.0,0.0004,120]
[405329896,1771006241028,-151.0,0.0004,120]
[405329897,1771006241037,-151.0,0.0004,120]
[405329898,1771006241047,-151.0,0.0004,120]
[405329899,1771006241055,-151.0,0.0004,120]
[405329900,1771006241065,-284.446947,0.0004,120]
[405329901,1771006241074,-151.0,0.0004,120]
[405329902,1771006241083,-174.858824,0.0004,120]
[405329903,1771006241092,-151.0,0.0004,120]
[405329904,1771006241101,-22499.99,0.0004,120]
[405329905,1771006241111,-151.0,0.0004,120]
[405329906,1771006241120,-151.0,0.0004,120]
[405329907,1771006241129,-151.0,0.0004,120]
[405329908,1771006241138,-151.0,0.0004,120]
[405329909,1771006241148,-151.0,0.0004,120]
[405329910,1771006241157,-151.0,0.0004,120]
[405329911,1771006241166,-204.272542,0.0004,120]
[405329912,1771006241175,-151.0,0.0004,120]
[405329913,1771006241184,-151.0,0.0004,120]
[405329914,1771006241194,-151.0,0.0004,120]
[405329915,1771006241203,-151.0,0.0004,120]
[405329916,1771006241213,-300.97986,0.0004,120]
[405329917,1771006241222,-152.302548,0.0004,120]
[405329918,1771006241234,-2500.0,0.0004,120]
[405329919,1771006241243,-25000.0,0.0004,120]
[405329920,1771006241253,-12499.99,0.0004,120]
[405329921,1771006241262,-12499.99,0.0004,120]
[405329922,1771006241274,-1999.0,0.0004,120]
[405329923,1771006241283,-206426.91,0.0004,14]
[405329924,1771006241292,-151.0,0.0004,120]
[405329925,1771006241301,-151.0,0.0004,120]
[405329926,1771006241311,-151.0,0.0004,120]
[405329927,1771006241320,-151.0,0.0004,120]
[405329928,1771006241329,-205.29879,0.0004,120]
[405329929,1771006241341,-205.29879,0.0004,120]
[405329930,1771006241350,-151.0,0.0004,120]